[Event "VI Sunway Sitges Open 2019"]
[Site "Sitges"]
[Date "2019.12.20"]
[Round "8.53"]
[White "Mateus, Domingos"]
[Black "Goris-Schouwstra, Adry"]
[Result "1-0"]
[ECO "C01"]
[WhiteElo "1857"]
[BlackElo "1624"]
[Annotator "NA"]
[PlyCount "137"]
[EventDate "2019.12.13"]
[EventType "swiss"]
[EventCountry "ESP"]
[SourceTitle "playchess.com"]
[Source "ChessBase"]
[SourceQuality "1"]
[TimeControl "40/5400+30:1800+30"]

1. e4 {[%emt 0:08:09]} e6 {[%emt 0:00:00]} 2. d4 {[%emt 0:00:14]} d5 {[%emt 0:00:00]} 3. exd5 {[%emt 0:03:03]} exd5 {[%emt 0:00:11]} 4. Bd3 {[%emt 0:00:11]} Bd6 {[%emt 0:00:35]} 5. h3 {[%emt 0:00:41]} Ne7 {[%emt 0:01:52]} 6. Nf3 {[%emt 0:04:12]} Bf5 {[%emt 0:01:31]} 7. O-O {[%emt 0:00:37]} Bxd3 {[%emt 0:02:03]} 8. Qxd3 {[%emt 0:00:06]} c6 {[%emt 0:04:21]} 9. Re1 {[%emt 0:01:08]} h6 {[%emt 0:00:53]} 10. Nbd2 {[%emt 0:03:51]} O-O {[%emt 0:03:21]} 11. Nf1 {[%emt 0:04:58]} Nd7 {[%emt 0:01:00]} 12. Ne3 {[%emt 0:00:39]} Re8 {[%emt 0:03:47]} 13. Ng4 {[%emt 0:02:15]} Ng6 {[%emt 0:03:42]} 14. Bd2 {[%emt 0:05:23]} Bf8 {[%emt 0:09:41]} 15. Rxe8 {[%emt 0:03:33]} Qxe8 {[%emt 0:00:15]} 16. Re1 {[%emt 0:00:06]} Qd8 {[%emt 0:00:23]} 17. Qf5 {[%emt 0:00:10]} Qc7 {[%emt 0:10:15]} 18. Bxh6 {[%emt 0:07:31]} gxh6 {[%emt 0:00:39]} 19. Qxd7 {[%emt 0:00:05]} Qxd7 {[%emt 0:08:22]} 20. Nf6+ {[%emt 0:00:35]} Kg7 {[%emt 0:00:28]} 21. Nxd7 {[%emt 0:00:02]} Bd6 {[%emt 0:01:12]} 22. Nde5 {[%emt 0:00:16]} Re8 {[%emt 0:02:04]} 23. Nxg6 {[%emt 0:00:32]} Rxe1+ {[%emt 0:00:18]} 24. Nxe1 {[%emt 0:00:02]} fxg6 {[%emt 0:00:36]} 25. Kf1 {[%emt 0:00:07]} h5 {[%emt 0:02:25]} 26. Ke2 {[%emt 0:00:40]} Kf6 {[%emt 0:00:43]} 27. Kd3 {[%emt 0:00:17]} Kf5 {[%emt 0:02:15]} 28. b3 {[%emt 0:01:30]} b5 {[%emt 0:00:58]} 29. c3 {[%emt 0:00:20]} g5 {[%emt 0:03:39]} 30. Nc2 {[%emt 0:01:06]} Kf6 {[%emt 0:01:00]} 31. Ne3 {[%emt 0:00:47]} Ke6 {[%emt 0:01:36]} 32. c4 {[%emt 0:01:21]} Bf4 {[%emt 0:02:26]} 33. g3 {[%emt 0:00:44]} Bc7 {[%emt 0:01:49]} 34. c5 {[%emt 0:04:42]} a5 {[%emt 0:04:36]} 35. a4 {[%emt 0:00:58]} b4 {[%emt 0:00:37]} 36. g4 {[%emt 0:00:26]} hxg4 {[%emt 0:01:09]} 37. hxg4 {[%emt 0:00:02]} Bf4 {[%emt 0:04:26]} 38. Nf5 {[%emt 0:00:14]} Kf6 {[%emt 0:03:40]} 39. Nh6 {[%emt 0:01:34]} Kg7 {[%emt 0:00:51]} 40. Nf5+ {[%emt 0:00:00]} Kf6 {[%emt 0:00:00]} 41. Ke2 {[%emt 0:00:32]} Ke6 {[%emt 0:01:33]} 42. Ng7+ {[%emt 0:00:23]} Kf7 {[%emt 0:01:02]} 43. Nh5 {[%emt 0:01:34]} Bc7 {[%emt 0:01:39]} 44. Kd3 {[%emt 0:00:32]} Kg6 {[%emt 0:03:24]} 45. Ke3 {[%emt 0:00:46]} Bb8 {[%emt 0:02:01]} 46. Kf3 {[%emt 0:00:17]} Bc7 {[%emt 0:02:32]} 47. Ng3 {[%emt 0:02:44]} Bf4 {[%emt 0:01:37]} 48. Nf5 {[%emt 0:00:21]} Kf6 {[%emt 0:00:33]} 49. Ke2 {[%emt 0:01:51]} Bc7 {[%emt 0:03:00]} 50. Ne3 {[%emt 0:00:17]} Bf4 {[%emt 0:00:39]} 51. Nc2 {[%emt 0:00:12]} Bc7 {[%emt 0:01:14]} 52. Ne1 {[%emt 0:00:11]} Bf4 {[%emt 0:01:49]} 53. Nd3 {[%emt 0:00:03]} Bc7 {[%emt 0:01:23]} 54. Ke3 {[%emt 0:00:03]} Bb8 {[%emt 0:01:57]} 55. f4 {[%emt 0:01:05]} gxf4+ {[%emt 0:00:43]} 56. Nxf4 {[%emt 0:00:04]} Kg5 {[%emt 0:13:39]} 57. Ne6+ {[%emt 0:00:30]} Kxg4 {[%emt 0:00:52]} 58. Nd8 {[%emt 0:00:09]} Kf5 {[%emt 0:01:49]} 59. Nxc6 {[%emt 0:00:29]} Bc7 {[%emt 0:00:51]} 60. Ne7+ {[%emt 0:00:22]} Ke6 {[%emt 0:00:30]} 61. Ng6 {[%emt 0:00:32]} Kf5 {[%emt 0:00:53]} 62. Nh4+ {[%emt 0:00:58]} Ke6 {[%emt 0:01:58]} 63. Ng6 {[%emt 0:04:40]} Kd7 {[%emt 0:02:48]} 64. Nf4 {[%emt 0:07:51]} Kc6 {[%emt 0:00:15]} 65. Ng6 {[%emt 0:04:40]} Bd8 {[%emt 0:01:46]} 66. Kf4 {[%emt 0:00:40]} Bf6 {[%emt 0:01:26]} 67. Ne5+ {[%emt 0:00:04]} Kc7 {[%emt 0:02:02]} 68. Kf5 Bh4 {[%emt 0:00:02]} 69. Ke6 1-0

[Event "VI Sunway Sitges Open 2019"]
[Site "Sitges"]
[Date "2019.12.20"]
[Round "8.54"]
[White "Divitt Arora"]
[Black "De La Riva Fernandez, Eduardo"]
[Result "0-1"]
[ECO "C14"]
[WhiteElo "1616"]
[BlackElo "1824"]
[Annotator "NA"]
[PlyCount "144"]
[EventDate "2019.12.13"]
[EventType "swiss"]
[EventCountry "ESP"]
[SourceTitle "playchess.com"]
[Source "ChessBase"]
[SourceQuality "1"]
[TimeControl "40/5400+30:1800+30"]

1. e4 {[%emt 20:44:16]} e6 {[%emt 0:00:09]} 2. d4 {[%emt 0:00:05]} d5 {[%emt 0:00:05]} 3. Nc3 {[%emt 0:00:16]} Nf6 {[%emt 0:00:09]} 4. Bg5 {[%emt 0:00:15]} Be7 {[%emt 0:00:07]} 5. e5 {[%emt 0:00:10]} Nfd7 {[%emt 0:00:11]} 6. Bxe7 {[%emt 0:00:07]} Qxe7 {[%emt 0:00:04]} 7. f4 {[%emt 0:00:14]} a6 {[%emt 0:00:28]} 8. Qg4 {[%emt 0:00:10]} f5 {[%emt 0:01:50]} 9. exf6 {[%emt 0:00:15]} Nxf6 {[%emt 0:00:17]} 10. Qh4 {[%emt 0:00:18]} c5 {[%emt 0:03:01]} 11. dxc5 {[%emt 0:00:09]} Qxc5 {[%emt 0:01:01]} 12. O-O-O {[%emt 0:05:51]} Nc6 {[%emt 0:02:03]} 13. Bd3 {[%emt 0:11:34]} O-O {[%emt 0:13:33]} 14. Kb1 {[%emt 0:00:41]} Nb4 {[%emt 0:07:41]} 15. Nf3 {[%emt 0:26:28]} Nxd3 {[%emt 0:01:58]} 16. Rxd3 {[%emt 0:00:56]} Bd7 {[%emt 0:02:02]} 17. Ne5 {[%emt 0:02:07]} Be8 {[%emt 0:12:57]} 18. g4 {[%emt 0:17:53]} Rc8 {[%emt 0:11:23]} 19. Rc1 {[%emt 0:07:18]} Rc7 {[%emt 0:02:51]} 20. Rh3 {[%emt 0:03:26]} Bg6 {[%emt 0:07:14]} 21. Nxg6 {[%emt 0:04:05]} hxg6 {[%emt 0:00:01]} 22. Qg5 {[%emt 0:00:31]} d4 {[%emt 0:12:10]} 23. Qxc5 {[%emt 0:01:26]} Rxc5 {[%emt 0:00:01]} 24. Ne2 {[%emt 0:00:43]} Rd5 {[%emt 0:01:59]} 25. Rd3 {[%emt 0:00:36]} Nxg4 {[%emt 0:00:52]} 26. Rxd4 {[%emt 0:00:41]} Nxh2 {[%emt 0:03:09]} 27. Rxd5 {[%emt 0:00:07]} exd5 {[%emt 0:00:17]} 28. Rd1 {[%emt 0:00:30]} Rf5 {[%emt 0:03:54]} 29. Rd4 {[%emt 0:01:18]} Nf3 {[%emt 0:00:58]} 30. Rd3 {[%emt 0:00:46]} Nh4 {[%emt 0:02:15]} 31. Rb3 {[%emt 0:01:14]} b5 {[%emt 0:03:34]} 32. Ra3 {[%emt 0:01:25]} Rf6 {[%emt 0:00:38]} 33. Rd3 {[%emt 0:00:12]} Ng2 {[%emt 0:00:51]} 34. Rxd5 {[%emt 0:00:50]} Nxf4 {[%emt 0:00:15]} 35. Nxf4 {[%emt 0:00:10]} Rxf4 36. a3 {[%emt 0:00:13]} Rf5 {[%emt 0:01:13]} 37. Rd6 {[%emt 0:00:14]} Rf6 {[%emt 0:00:13]} 38. Rd5 {[%emt 0:00:28]} Rf5 {[%emt 0:00:20]} 39. Rd6 {[%emt 0:00:11]} Rf6 40. Rd5 {[%emt 0:00:13]} Kh7 {[%emt 0:00:34]} 41. Kc1 {[%emt 0:00:11]} Kh6 {[%emt 0:00:16]} 42. Kd2 {[%emt 0:01:39]} g5 {[%emt 0:02:02]} 43. a4 {[%emt 0:00:32]} bxa4 {[%emt 0:00:27]} 44. Ra5 {[%emt 0:00:14]} g4 {[%emt 0:00:22]} 45. Rxa4 {[%emt 0:00:13]} Kh5 {[%emt 0:00:12]} 46. c4 {[%emt 0:01:15]} g3 {[%emt 0:00:19]} 47. Ra1 {[%emt 0:05:08]} Kg4 {[%emt 0:00:39]} 48. b4 {[%emt 0:00:37]} g2 {[%emt 0:00:36]} 49. Ke2 {[%emt 0:01:17]} Kg3 {[%emt 0:00:58]} 50. b5 {[%emt 0:02:12]} axb5 {[%emt 0:01:22]} 51. cxb5 {[%emt 0:00:10]} Re6+ {[%emt 0:02:10]} 52. Kd3 {[%emt 0:00:14]} Kh2 {[%emt 0:00:34]} 53. Kd4 {[%emt 0:00:33]} g1=Q+ {[%emt 0:00:55]} 54. Rxg1 {[%emt 0:00:11]} Kxg1 {[%emt 0:00:11]} 55. Kd5 {[%emt 0:00:08]} Rh6 {[%emt 0:00:27]} 56. Kc5 {[%emt 0:00:08]} g5 {[%emt 0:00:23]} 57. b6 {[%emt 0:00:07]} Rh8 {[%emt 0:00:20]} 58. Kc6 {[%emt 0:00:23]} g4 {[%emt 0:00:14]} 59. b7 {[%emt 0:00:07]} g3 {[%emt 0:00:09]} 60. Kc7 {[%emt 0:00:05]} g2 {[%emt 0:00:27]} 61. b8=Q {[%emt 0:00:16]} Rxb8 {[%emt 0:00:09]} 62. Kxb8 {[%emt 0:00:11]} Kf2 {[%emt 0:00:08]} 63. Kc7 {[%emt 0:00:08]} g1=Q {[%emt 0:00:14]} 64. Kd6 {[%emt 0:00:05]} Qg5 {[%emt 0:00:12]} 65. Kc6 {[%emt 0:00:09]} Qe5 {[%emt 0:00:10]} 66. Kb6 {[%emt 0:00:10]} Qc3 {[%emt 0:00:12]} 67. Kb7 {[%emt 0:00:09]} Ke3 {[%emt 0:00:13]} 68. Kb6 {[%emt 0:00:10]} Qc8 {[%emt 0:00:19]} 69. Kb5 {[%emt 0:00:08]} Kd4 {[%emt 0:00:24]} 70. Kb4 {[%emt 0:00:10]} Qb7+ {[%emt 0:00:17]} 71. Ka3 {[%emt 0:00:07]} Kc3 {[%emt 0:00:30]} 72. Ka4 {[%emt 0:00:05]} Qb4# {[%emt 0:00:08]} 0-1

[Event "VI Sunway Sitges Open 2019"]
[Site "Sitges"]
[Date "2019.12.20"]
[Round "9.2"]
[White "Durarbayli, Vasif"]
[Black "Kovalenko, Igor"]
[Result "1-0"]
[ECO "B01"]
[WhiteElo "2609"]
[BlackElo "2647"]
[Annotator "RC"]
[PlyCount "111"]
[EventDate "2019.12.13"]
[EventType "swiss"]
[EventCountry "ESP"]
[SourceTitle "playchess.com"]
[Source "ChessBase"]
[SourceQuality "1"]
[TimeControl "40/5400+30:1800+30"]

1. e4 {[%emt 0:00:00]} d5 {[%emt 0:00:00]} 2. exd5 {[%emt 0:00:00]} Qxd5 {[%emt 0:00:00]} 3. Nc3 {[%emt 0:00:00]} Qa5 {[%emt 0:00:00]} 4. d4 {[%emt 0:00:00]} Nf6 {[%emt 0:00:00]} 5. Nf3 {[%emt 0:00:00]} Bf5 {[%emt 0:00:00]} 6. Ne5 {[%emt 0:01:08]} c6 {[%emt 0:00:00]} 7. g4 {[%emt 0:00:24]} Be6 {[%emt 0:00:35]} 8. Bc4 {[%emt 0:14:01]} Bxc4 {[%emt 0:00:39]} 9. Nxc4 {[%emt 0:00:06]} Qa6 {[%emt 0:00:17]} 10. Qe2 {[%emt 0:03:04]} e6 {[%emt 0:00:16]} 11. g5 {[%emt 0:00:49]} Nd5 {[%emt 0:00:06]} 12. Ne4 {[%emt 0:00:05]} Nd7 {[%emt 0:12:36]} 13. Ncd6+ {[%emt 0:03:38]} Bxd6 {[%emt 0:00:03]} 14. Nxd6+ {[%emt 0:00:08]} Ke7 {[%emt 0:00:03]} 15. Qxa6 {[%emt 0:00:39]} bxa6 {[%emt 0:00:03]} 16. Ne4 {[%emt 0:00:28]} Nb4 {[%emt 0:14:17]} 17. Kd2 {[%emt 0:05:48]} f5 {[%emt 0:02:52]} 18. gxf6+ {[%emt 0:00:25]} Nxf6 {[%emt 0:00:02]} 19. Nxf6 {[%emt 0:05:37]} gxf6 {[%emt 0:00:04]} 20. c4 {[%emt 0:08:03]} a5 {[%emt 0:00:03]} 21. a3 {[%emt 0:00:37]} Na6 {[%emt 0:00:04]} 22. Kc3 {[%emt 0:00:32]} a4 {[%emt 0:07:18]} 23. Bf4 {[%emt 0:02:19]} Rag8 {[%emt 0:06:20]} 24. Rhg1 {[%emt 0:04:33]} Rg6 {[%emt 0:02:51]} 25. Rae1 {[%emt 0:04:34]} Kf7 {[%emt 0:02:22]} 26. Rg3 {[%emt 0:02:22]} Rxg3+ {[%emt 0:07:27]} 27. hxg3 {[%emt 0:00:14]} h5 {[%emt 0:00:03]} 28. Rh1 {[%emt 0:03:53]} Kg6 {[%emt 0:02:55]} 29. Rh4 {[%emt 0:03:46]} Rd8 {[%emt 0:07:44]} 30. g4 {[%emt 0:02:32]} hxg4 {[%emt 0:00:00]} 31. Rxg4+ {[%emt 0:00:11]} Kf5 {[%emt 0:00:00]} 32. Rh4 {[%emt 0:00:04]} c5 {[%emt 0:25:52]} 33. Be3 {[%emt 0:00:20]} Rd7 {[%emt 0:00:44]} 34. dxc5 {[%emt 0:02:43]} e5 {[%emt 0:01:02]} 35. Rh5+ {[%emt 0:01:45]} Ke4 {[%emt 0:00:12]} 36. Rh6 {[%emt 0:00:34]} Kf5 {[%emt 0:01:49]} 37. Rh8 {[%emt 0:06:00]} Rc7 {[%emt 0:00:16]} 38. Rd8 {[%emt 0:01:12]} Nxc5 {[%emt 0:00:33]} 39. Bxc5 {[%emt 0:02:51]} Rxc5 {[%emt 0:00:03]} 40. Rd7 {[%emt 0:00:00]} Ke4 {[%emt 0:00:00]} 41. Rxa7 {[%emt 0:10:08]} f5 {[%emt 0:06:59]} 42. Rxa4 {[%emt 0:00:45]} Kf3 {[%emt 0:00:37]} 43. b4 {[%emt 0:10:51]} Rc8 {[%emt 0:00:04]} 44. Ra5 {[%emt 0:03:23]} Re8 {[%emt 0:00:03]} 45. b5 {[%emt 0:04:47]} Kxf2 {[%emt 0:00:41]} 46. b6 {[%emt 0:00:05]} f4 {[%emt 0:00:04]} 47. b7 {[%emt 0:00:31]} Rb8 {[%emt 0:00:23]} 48. Rb5 {[%emt 0:04:06]} f3 {[%emt 0:10:43]} 49. c5 {[%emt 0:01:56]} Kg3 {[%emt 0:02:26]} 50. c6 {[%emt 0:00:47]} f2 {[%emt 0:00:02]} 51. Rb1 {[%emt 0:00:25]} e4 {[%emt 0:00:03]} 52. Kd4 {[%emt 0:01:29]} Kf3 {[%emt 0:00:05]} 53. Rc1 {[%emt 0:05:14]} Rd8+ {[%emt 0:00:04]} 54. Kc5 {[%emt 0:00:44]} Rg8 {[%emt 0:05:46]} 55. c7 {[%emt 0:00:06]} Rg5+ {[%emt 0:00:01]} 56. Kd4 {[%emt 0:01:26]} 1-0

[Event "VI Sunway Sitges Open 2019"]
[Site "Sitges"]
[Date "2019.12.20"]
[Round "9.5"]
[White "Puranik, Abhimanyu"]
[Black "Narayanan.S.L"]
[Result "1-0"]
[ECO "A20"]
[WhiteElo "2580"]
[BlackElo "2626"]
[Annotator "RC"]
[PlyCount "81"]
[EventDate "2019.12.13"]
[EventType "swiss"]
[EventCountry "ESP"]
[SourceTitle "playchess.com"]
[Source "ChessBase"]
[SourceQuality "1"]
[TimeControl "40/5400+30:1800+30"]

1. c4 {[%emt 0:00:00]} e5 {[%emt 0:00:00]} 2. g3 {[%emt 0:00:17]} Nf6 3. Bg2 {[%emt 0:00:00]} c6 {[%emt 0:00:00]} 4. d4 {[%emt 0:00:33]} e4 {[%emt 0:00:22]} 5. Nc3 {[%emt 0:00:27]} d5 {[%emt 0:01:36]} 6. Bg5 {[%emt 0:01:58]} Nbd7 {[%emt 0:04:46]} 7. Nh3 {[%emt 0:04:59]} h6 {[%emt 0:03:17]} 8. Bxf6 {[%emt 0:02:38]} Nxf6 {[%emt 0:01:18]} 9. cxd5 {[%emt 0:01:53]} cxd5 {[%emt 0:02:11]} 10. Qb3 {[%emt 0:02:39]} Bd6 11. O-O {[%emt 0:05:32]} Bc7 {[%emt 0:05:08]} 12. f3 {[%emt 0:00:00]} O-O {[%emt 0:03:30]} 13. fxe4 {[%emt 0:02:28]} dxe4 {[%emt 0:01:32]} 14. e3 {[%emt 0:26:56]} Be6 {[%emt 0:13:32]} 15. Qc2 {[%emt 0:00:00]} Bc4 {[%emt 0:17:28]} 16. Rfe1 {[%emt 0:00:00]} Ba5 {[%emt 0:06:55]} 17. Nf2 {[%emt 0:07:42]} Bd5 {[%emt 0:07:49]} 18. Nfxe4 {[%emt 0:00:00]} Bxe4 {[%emt 0:00:00]} 19. Bxe4 {[%emt 0:00:00]} Nxe4 {[%emt 0:00:00]} 20. Qxe4 {[%emt 0:00:00]} Bxc3 {[%emt 0:00:00]} 21. bxc3 {[%emt 0:00:00]} Qc7 {[%emt 0:00:00]} 22. Qd3 {[%emt 0:00:31]} Rac8 {[%emt 0:02:27]} 23. Rac1 {[%emt 0:04:53]} Qa5 {[%emt 0:01:53]} 24. Rc2 {[%emt 0:02:01]} b5 {[%emt 0:02:03]} 25. e4 {[%emt 0:04:54]} Rc4 {[%emt 0:04:36]} 26. e5 {[%emt 0:01:49]} Rfc8 {[%emt 0:18:22]} 27. Re3 {[%emt 0:20:49]} Qb6 {[%emt 0:00:00]} 28. a3 {[%emt 0:04:58]} a5 29. Rd2 {[%emt 0:06:46]} Rxc3 {[%emt 0:00:00]} 30. Qxc3 Rxc3 31. Rxc3 {[%emt 0:00:26]} b4 {[%emt 0:00:00]} 32. axb4 {[%emt 0:00:00]} axb4 {[%emt 0:00:38]} 33. Rb3 {[%emt 0:05:50]} Kh7 {[%emt 0:00:00]} 34. Kg2 {[%emt 0:00:00]} Qc6+ {[%emt 0:00:00]} 35. d5 {[%emt 0:00:53]} Qc4 {[%emt 0:00:00]} 36. d6 {[%emt 0:06:29]} Qe4+ {[%emt 0:00:00]} 37. Kf2 {[%emt 0:00:00]} Qf5+ {[%emt 0:00:00]} 38. Rf3 {[%emt 0:00:00]} Qd7 {[%emt 0:00:00]} 39. Kg2 {[%emt 0:00:00]} Kg6 {[%emt 0:00:00]} 40. h4 {[%emt 0:01:28]} h5 {[%emt 0:00:00]} 41. Kh2 {[%emt 0:00:00]} 1-0

[Event "VI Sunway Sitges Open 2019"]
[Site "Sitges"]
[Date "2019.12.20"]
[Round "9.8"]
[White "Erigaisi Arjun"]
[Black "Karthikeyan, Murali"]
[Result "1/2-1/2"]
[ECO "E94"]
[WhiteElo "2544"]
[BlackElo "2611"]
[Annotator "RC"]
[PlyCount "191"]
[EventDate "2019.12.13"]
[EventType "swiss"]
[EventCountry "ESP"]
[SourceTitle "playchess.com"]
[Source "ChessBase"]
[SourceQuality "1"]
[TimeControl "40/5400+30:1800+30"]

1. d4 {[%emt 0:00:00]} Nf6 {[%emt 0:00:00]} 2. c4 {[%emt 0:00:21]} g6 {[%emt 0:00:03]} 3. Nc3 {[%emt 0:00:06]} Bg7 {[%emt 0:00:05]} 4. e4 {[%emt 0:00:06]} d6 {[%emt 0:00:04]} 5. Be2 {[%emt 0:00:05]} O-O {[%emt 0:00:06]} 6. Be3 {[%emt 0:00:04]} Na6 {[%emt 0:02:39]} 7. Nf3 {[%emt 0:01:07]} e5 {[%emt 0:01:16]} 8. O-O {[%emt 0:00:26]} Qe8 {[%emt 0:04:43]} 9. h3 {[%emt 0:11:09]} Nxe4 {[%emt 0:23:10]} 10. Nxe4 {[%emt 0:01:34]} exd4 {[%emt 0:00:03]} 11. Nxd6 {[%emt 0:02:33]} Qe6 {[%emt 0:01:50]} 12. Bf4 {[%emt 0:33:50]} cxd6 {[%emt 0:00:20]} 13. Re1 {[%emt 0:11:47]} d5 {[%emt 0:23:38]} 14. Rc1 {[%emt 0:03:49]} Nc5 {[%emt 0:12:51]} 15. cxd5 {[%emt 0:06:27]} Qxd5 {[%emt 0:00:06]} 16. Bc4 {[%emt 0:00:11]} Qd8 {[%emt 0:05:34]} 17. Bg5 {[%emt 0:01:03]} Bf6 {[%emt 0:06:06]} 18. Bxf6 {[%emt 0:01:17]} Qxf6 {[%emt 0:00:06]} 19. Qxd4 {[%emt 0:00:07]} Qxd4 {[%emt 0:01:58]} 20. Nxd4 {[%emt 0:00:06]} Rd8 {[%emt 0:01:38]} 21. b4 {[%emt 0:00:52]} Kf8 {[%emt 0:03:30]} 22. Rcd1 {[%emt 0:06:48]} Na4 {[%emt 0:01:14]} 23. Bb3 {[%emt 0:00:56]} Nc3 {[%emt 0:05:39]} 24. Rd3 {[%emt 0:02:49]} Bf5 {[%emt 0:00:30]} 25. Rxc3 {[%emt 0:01:20]} Rxd4 {[%emt 0:00:05]} 26. g4 {[%emt 0:05:49]} Bd7 {[%emt 0:00:07]} 27. Rc7 {[%emt 0:00:28]} b6 {[%emt 0:01:02]} 28. Rd1 {[%emt 0:00:43]} Rxd1+ {[%emt 0:01:50]} 29. Bxd1 {[%emt 0:00:06]} Be6 {[%emt 0:02:19]} 30. Bf3 {[%emt 0:00:07]} Rc8 {[%emt 0:01:22]} 31. Rxa7 {[%emt 0:00:07]} Rc3 {[%emt 0:00:05]} 32. Kg2 {[%emt 0:00:59]} h5 {[%emt 0:00:24]} 33. a4 {[%emt 0:01:19]} hxg4 {[%emt 0:00:29]} 34. hxg4 {[%emt 0:00:07]} Rc4 {[%emt 0:01:23]} 35. b5 {[%emt 0:00:22]} Rb4 {[%emt 0:00:24]} 36. Rb7 {[%emt 0:04:13]} Bxg4 {[%emt 0:00:31]} 37. Bd5 {[%emt 0:00:22]} Rxa4 {[%emt 0:00:47]} 38. Rxf7+ {[%emt 0:00:20]} Ke8 {[%emt 0:00:04]} 39. Rf6 {[%emt 0:00:06]} Rd4 {[%emt 0:00:49]} 40. Bb7 {[%emt 0:00:00]} Bd7 {[%emt 0:00:00]} 41. Rxb6 {[%emt 0:01:30]} Rb4 {[%emt 0:06:24]} 42. Ba6 {[%emt 0:00:40]} g5 {[%emt 0:01:57]} 43. Rb8+ {[%emt 0:03:40]} Ke7 {[%emt 0:00:34]} 44. b6 {[%emt 0:00:28]} Bc6+ {[%emt 0:00:37]} 45. Kg3 {[%emt 0:00:48]} Rb3+ {[%emt 0:02:33]} 46. Kh2 {[%emt 0:04:01]} Rb2 {[%emt 0:03:27]} 47. b7 {[%emt 0:02:11]} Rxf2+ {[%emt 0:00:19]} 48. Kg3 {[%emt 0:00:06]} Rg2+ {[%emt 0:00:36]} 49. Kh3 {[%emt 0:00:07]} g4+ {[%emt 0:00:07]} 50. Kh4 {[%emt 0:00:05]} Rb2 {[%emt 0:00:15]} 51. Rg8 {[%emt 0:00:17]} Bxb7 {[%emt 0:00:09]} 52. Bxb7 {[%emt 0:00:06]} Kf6 {[%emt 0:01:46]} 53. Bc6 {[%emt 0:00:24]} Rc2 {[%emt 0:01:01]} 54. Bd7 {[%emt 0:00:26]} Rh2+ {[%emt 0:00:48]} 55. Kg3 {[%emt 0:00:07]} Rh3+ {[%emt 0:00:06]} 56. Kg2 {[%emt 0:00:27]} Rh7 {[%emt 0:00:19]} 57. Bxg4 {[%emt 0:00:18]} Rg7 {[%emt 0:00:46]} 58. Rf8+ {[%emt 0:00:07]} Rf7 {[%emt 0:00:10]} 59. Ra8 {[%emt 0:00:08]} Ke5 {[%emt 0:00:07]} 60. Ra4 {[%emt 0:01:16]} Rf4 {[%emt 0:00:29]} 61. Ra5+ {[%emt 0:00:06]} Kd6 {[%emt 0:01:21]} 62. Bf3 {[%emt 0:00:49]} Rc4 {[%emt 0:00:19]} 63. Kg3 {[%emt 0:01:22]} Rd4 {[%emt 0:00:20]} 64. Kf2 {[%emt 0:00:39]} Rd3 {[%emt 0:00:46]} 65. Be4 {[%emt 0:00:15]} Rc3 {[%emt 0:00:08]} 66. Ke2 {[%emt 0:00:10]} Rb3 {[%emt 0:02:17]} 67. Bd3 {[%emt 0:00:19]} Rc3 {[%emt 0:00:13]} 68. Ke3 {[%emt 0:00:06]} Rc5 {[%emt 0:00:04]} 69. Ra6+ {[%emt 0:00:06]} Ke5 {[%emt 0:00:38]} 70. Ra8 {[%emt 0:00:51]} Rd5 {[%emt 0:03:23]} 71. Be4 {[%emt 0:00:29]} Rb5 {[%emt 0:00:22]} 72. Re8+ {[%emt 0:01:25]} Kd6 {[%emt 0:00:11]} 73. Kd4 {[%emt 0:00:21]} Rb4+ {[%emt 0:00:07]} 74. Kc3 {[%emt 0:00:07]} Ra4 {[%emt 0:00:16]} 75. Bc2 {[%emt 0:00:36]} Ra2 {[%emt 0:01:13]} 76. Bd3 {[%emt 0:00:17]} Ra4 {[%emt 0:01:26]} 77. Bc4 {[%emt 0:00:07]} Ra1 {[%emt 0:00:17]} 78. Kd4 {[%emt 0:00:08]} Rd1+ {[%emt 0:00:06]} 79. Bd3 {[%emt 0:00:05]} Kd7 {[%emt 0:00:49]} 80. Rh8 {[%emt 0:00:58]} Kd6 {[%emt 0:00:07]} 81. Rh6+ {[%emt 0:01:14]} Kd7 {[%emt 0:00:07]} 82. Ke4 {[%emt 0:00:20]} Kc7 {[%emt 0:00:58]} 83. Bc4 {[%emt 0:00:24]} Rd6 {[%emt 0:00:08]} 84. Rh8 {[%emt 0:00:26]} Rg6 {[%emt 0:00:57]} 85. Kd4 {[%emt 0:00:33]} Kd6 {[%emt 0:00:31]} 86. Bd5 {[%emt 0:00:14]} Rf6 {[%emt 0:00:45]} 87. Ra8 {[%emt 0:02:17]} Rf4+ {[%emt 0:00:09]} 88. Be4 {[%emt 0:00:06]} Rf6 {[%emt 0:00:09]} 89. Ra7 {[%emt 0:00:27]} Ke6 {[%emt 0:01:05]} 90. Ra6+ {[%emt 0:02:22]} Ke7 {[%emt 0:00:08]} 91. Ra1 {[%emt 0:00:05]} Kd6 {[%emt 0:00:19]} 92. Rc1 {[%emt 0:00:07]} Ke6 {[%emt 0:01:02]} 93. Bd5+ {[%emt 0:00:10]} Kf5 {[%emt 0:00:58]} 94. Rg1 {[%emt 0:00:08]} Kf4 {[%emt 0:00:24]} 95. Rf1+ {[%emt 0:00:07]} Kg5 {[%emt 0:00:05]} 96. Rxf6 {[%emt 0:00:04]} 1/2-1/2

[Event "VI Sunway Sitges Open 2019"]
[Site "Sitges"]
[Date "2019.12.20"]
[Round "9.10"]
[White "Erenberg, Ariel"]
[Black "Gareyev, Timur"]
[Result "0-1"]
[ECO "D44"]
[WhiteElo "2479"]
[BlackElo "2598"]
[Annotator "ChessBase"]
[PlyCount "74"]
[EventDate "2019.12.13"]
[EventType "swiss"]
[EventCountry "ESP"]
[SourceTitle "playchess.com"]
[Source "ChessBase"]
[SourceQuality "1"]
[TimeControl "40/5400+30:1800+30"]

1. d4 {[%emt 0:00:00]} Nf6 {[%emt 0:03:24]} 2. c4 {[%emt 0:00:00]} e6 {[%emt 0:00:07]} 3. Nf3 {[%emt 0:00:05]} d5 {[%emt 0:00:48]} 4. Nc3 {[%emt 0:00:26]} c6 {[%emt 0:00:25]} 5. Bg5 {[%emt 0:02:04]} h6 {[%emt 0:00:02]} 6. Bh4 {[%emt 0:02:18]} dxc4 {[%emt 0:00:34]} 7. e4 {[%emt 0:00:13]} b5 {[%emt 0:00:05]} 8. e5 {[%emt 0:00:10]} g5 {[%emt 0:00:03]} 9. Nxg5 {[%emt 0:00:09]} hxg5 {[%emt 0:00:04]} 10. Bxg5 {[%emt 0:00:03]} Nbd7 {[%emt 0:00:20]} 11. exf6 {[%emt 0:00:25]} Bb7 {[%emt 0:00:15]} 12. h4 {[%emt 0:02:05]} Qb6 {[%emt 0:07:24]} 13. Qc2 {[%emt 0:00:18]} Qa5 {[%emt 0:03:22]} 14. Be2 {[%emt 0:17:43]} c5 {[%emt 0:12:36]} 15. d5 {[%emt 0:09:20]} exd5 {[%emt 0:00:02]} 16. Bf3 {[%emt 0:00:57]} O-O-O {[%emt 0:06:19]} 17. O-O {[%emt 0:08:10]} d4 {[%emt 0:04:53]} 18. Bxb7+ {[%emt 0:02:38]} Kxb7 {[%emt 0:00:10]} 19. Qe4+ {[%emt 0:00:06]} Kc8 {[%emt 0:00:04]} 20. Bf4 {[%emt 0:21:00]} Qb6 {[%emt 0:04:14]} 21. Nd5 {[%emt 0:00:48]} Qb7 {[%emt 0:00:33]} 22. Bc7 {[%emt 0:08:16]} Nb6 {[%emt 0:09:56]} 23. Bxd8 {[%emt 0:05:50]} Qxd5 {[%emt 0:01:35]} 24. Qxd5 {[%emt 0:06:14]} Nxd5 {[%emt 0:00:02]} 25. Be7 {[%emt 0:00:55]} Nxe7 {[%emt 0:02:13]} 26. fxe7 {[%emt 0:00:03]} Bxe7 {[%emt 0:00:05]} 27. g3 {[%emt 0:00:15]} Bf6 {[%emt 0:03:06]} 28. Rad1 {[%emt 0:05:48]} Kc7 {[%emt 0:10:37]} 29. Kg2 {[%emt 0:00:31]} Kc6 {[%emt 0:05:31]} 30. Rh1 {[%emt 0:01:42]} b4 {[%emt 0:02:29]} 31. h5 {[%emt 0:01:41]} c3 {[%emt 0:00:29]} 32. b3 {[%emt 0:00:31]} c4 {[%emt 0:00:21]} 33. h6 {[%emt 0:02:09]} c2 {[%emt 0:06:11]} 34. Rc1 {[%emt 0:00:53]} d3 {[%emt 0:00:38]} 35. bxc4 {[%emt 0:01:52]} Bb2 {[%emt 0:00:30]} 36. Kf3 {[%emt 0:01:41]} Bxc1 {[%emt 0:00:05]} 37. Rxc1 {[%emt 0:00:07]} d2 {[%emt 0:00:02]} 0-1